[Event "Titled Tuesday Blitz August 16 Late 2022"]
[White "Martic, Ivan"]
[Black "Djordjevic, Vuk"]
[WhiteFideId "929301"]
[BlackFideId "902098"]
[WhiteElo "2355"]
[BlackElo "2456"]
[Result "0-1"]
[Round "10"]
[TimeControl "180+1"]
[Date "2022.08.16"]
[WhiteClock "0:00:11"]
[BlackClock "0:00:38"]

1. d4 {[%clk 0:03:00]}  Nf6 {[%clk 0:02:59]} 2. Nf3 {[%clk 0:02:59]}  e6 {[%clk 0:02:58]} 3. Bf4 {[%clk 0:02:59]}  d5 {[%clk 0:02:59]} 4. e3 {[%clk 0:02:58]}  Bd6 {[%clk 0:02:55]} 5. Nbd2 {[%clk 0:02:57]}  O-O {[%clk 0:02:54]} 6. Bd3 {[%clk 0:02:54]}  b6 {[%clk 0:02:55]} 7. O-O {[%clk 0:02:51]}  Bxf4 {[%clk 0:02:55]} 8. exf4 {[%clk 0:02:51]}  c5 {[%clk 0:02:55]} 9. c3 {[%clk 0:02:50]}  a5 {[%clk 0:02:53]} 10. Re1 {[%clk 0:02:49]}  Ba6 {[%clk 0:02:43]} 11. Bb1 {[%clk 0:02:48]}  Qc7 {[%clk 0:02:34]} 12. Ne5 {[%clk 0:02:44]}  cxd4 {[%clk 0:02:29]} 13. cxd4 {[%clk 0:02:45]}  Nc6 {[%clk 0:02:29]} 14. Ndf3 {[%clk 0:02:41]}  Rac8 {[%clk 0:02:25]} 15. a3 {[%clk 0:02:30]}  Ne7 {[%clk 0:02:14]} 16. h3 {[%clk 0:02:14]}  Bb7 {[%clk 0:01:47]} 17. Ng5 {[%clk 0:02:09]}  h6 {[%clk 0:01:42]} 18. Ngf3 {[%clk 0:02:08]}  Ne4 {[%clk 0:01:41]} 19. g3 {[%clk 0:01:58]}  f6 {[%clk 0:01:35]} 20. Ng4 {[%clk 0:01:57]}  Qc4 {[%clk 0:01:28]} 21. Bd3 {[%clk 0:01:53]}  Qc6 {[%clk 0:01:28]} 22. Qb3 {[%clk 0:01:50]}  Nf5 {[%clk 0:01:22]} 23. Rad1 {[%clk 0:01:43]}  g5 {[%clk 0:01:18]} 24. fxg5 {[%clk 0:01:35]}  hxg5 {[%clk 0:01:18]} 25. Bb5 {[%clk 0:01:21]}  Qd6 {[%clk 0:01:18]} 26. Nfh2 {[%clk 0:01:10]}  Kg7 {[%clk 0:01:10]} 27. Qf3 {[%clk 0:00:48]}  Rc2 {[%clk 0:01:07]} 28. Re2 {[%clk 0:00:47]}  Rfc8 {[%clk 0:01:03]} 29. Rxc2 {[%clk 0:00:38]}  Rxc2 {[%clk 0:01:04]} 30. Ne3 {[%clk 0:00:38]}  Rxb2 {[%clk 0:00:57]} 31. Qxf5 {[%clk 0:00:20]}  Nxf2 {[%clk 0:00:41]} 32. Rf1 {[%clk 0:00:14]}  Qxg3+ {[%clk 0:00:40]} 33. Ng2 {[%clk 0:00:11]}  Nxh3+ {[%clk 0:00:38]} 0-1


[Site "https://www.chess.com"]

[Event "Titled Tuesday Blitz August 16 Late 2022"]
[White "Mendez Fortes, Eduardo Jesus"]
[Black "Stanisz, Patryk"]
[WhiteFideId "3502376"]
[BlackFideId "1123106"]
[WhiteElo "2307"]
[BlackElo "1833"]
[Result "1-0"]
[Round "10"]
[TimeControl "180+1"]
[Date "2022.08.18"]
[WhiteClock "0:00:00"]
[BlackClock "0:00:00"]

1. e4 {[%clk 0:00:00]}  c5 {[%clk 0:00:00]} 2. Nf3 {[%clk 0:00:00]}  Nc6 {[%clk 0:00:00]} 3. d4 {[%clk 0:00:00]}  cxd4 {[%clk 0:00:00]} 4. Nxd4 {[%clk 0:00:00]}  Nf6 {[%clk 0:00:00]} 5. Nc3 {[%clk 0:00:00]}  e5 {[%clk 0:00:00]} 6. Ndb5 {[%clk 0:00:00]}  d6 {[%clk 0:00:00]} 7. Nd5 {[%clk 0:00:00]}  Nxd5 {[%clk 0:00:00]} 8. exd5 {[%clk 0:00:00]}  Ne7 {[%clk 0:00:00]} 9. c4 {[%clk 0:00:00]}  Nf5 {[%clk 0:00:00]} 10. g3 {[%clk 0:00:00]}  Be7 {[%clk 0:00:00]} 11. Bg2 {[%clk 0:00:00]}  O-O {[%clk 0:00:00]} 12. O-O {[%clk 0:00:00]}  a6 {[%clk 0:00:00]} 13. Nc3 {[%clk 0:00:00]}  Nd4 {[%clk 0:00:00]} 14. Be3 {[%clk 0:00:00]}  Nf5 {[%clk 0:00:00]} 15. Bc1 {[%clk 0:00:00]}  Nd4 {[%clk 0:00:00]} 16. b4 {[%clk 0:00:00]}  a5 {[%clk 0:00:00]} 17. Rb1 {[%clk 0:00:00]}  axb4 {[%clk 0:00:00]} 18. Rxb4 {[%clk 0:00:00]}  f5 {[%clk 0:00:00]} 19. Be3 {[%clk 0:00:00]}  Bf6 {[%clk 0:00:00]} 20. Bxd4 {[%clk 0:00:00]}  exd4 {[%clk 0:00:00]} 21. Nb5 {[%clk 0:00:00]}  Rxa2 {[%clk 0:00:00]} 22. Nxd4 {[%clk 0:00:00]}  f4 {[%clk 0:00:00]} 23. Ne6 {[%clk 0:00:00]}  Bxe6 {[%clk 0:00:00]} 24. dxe6 {[%clk 0:00:00]}  fxg3 {[%clk 0:00:00]} 25. hxg3 {[%clk 0:00:00]}  Qa5 {[%clk 0:00:00]} 26. Rxb7 {[%clk 0:00:00]}  Rd2 {[%clk 0:00:00]} 27. Qg4 {[%clk 0:00:00]}  Bd4 {[%clk 0:00:00]} 28. e7 {[%clk 0:00:00]}  Re8 {[%clk 0:00:00]} 29. Qe6+ {[%clk 0:00:00]}  Kh8 {[%clk 0:00:00]} 30. Qf7 {[%clk 0:00:00]}  Qa4 {[%clk 0:00:00]} 31. Qf8+ {[%clk 0:00:00]} 1-0


[Site "https://www.chess.com"]

[Event "Titled Tuesday Blitz August 16 Late 2022"]
[White "Mirimanian, Hayk"]
[Black "Pires, Marcos Vinicius Torsani"]
[WhiteFideId "4700180"]
[BlackFideId "2118939"]
[WhiteElo "2280"]
[BlackElo "2273"]
[Result "1/2-1/2"]
[Round "10"]
[TimeControl "180+1"]
[Date "2022.08.18"]
[WhiteClock "0:00:00"]
[BlackClock "0:00:00"]

1. e4 {[%clk 0:00:00]}  c5 {[%clk 0:00:00]} 2. Nf3 {[%clk 0:00:00]}  Nc6 {[%clk 0:00:00]} 3. d4 {[%clk 0:00:00]}  cxd4 {[%clk 0:00:00]} 4. Nxd4 {[%clk 0:00:00]}  g6 {[%clk 0:00:00]} 5. Nc3 {[%clk 0:00:00]}  Bg7 {[%clk 0:00:00]} 6. Be3 {[%clk 0:00:00]}  Nf6 {[%clk 0:00:00]} 7. f3 {[%clk 0:00:00]}  O-O {[%clk 0:00:00]} 8. Qd2 {[%clk 0:00:00]}  d5 {[%clk 0:00:00]} 9. Nxc6 {[%clk 0:00:00]}  bxc6 {[%clk 0:00:00]} 10. exd5 {[%clk 0:00:00]}  Nxd5 {[%clk 0:00:00]} 11. Nxd5 {[%clk 0:00:00]}  cxd5 {[%clk 0:00:00]} 12. c3 {[%clk 0:00:00]}  e5 {[%clk 0:00:00]} 13. Be2 {[%clk 0:00:00]}  d4 {[%clk 0:00:00]} 14. Bf2 {[%clk 0:00:00]}  dxc3 {[%clk 0:00:00]} 15. Qxd8 {[%clk 0:00:00]}  Rxd8 {[%clk 0:00:00]} 16. bxc3 {[%clk 0:00:00]}  e4 {[%clk 0:00:00]} 17. Rc1 {[%clk 0:00:00]}  Bb7 {[%clk 0:00:00]} 18. O-O {[%clk 0:00:00]}  Rd2 {[%clk 0:00:00]} 19. Bc4 {[%clk 0:00:00]}  exf3 {[%clk 0:00:00]} 20. gxf3 {[%clk 0:00:00]}  Rc8 {[%clk 0:00:00]} 21. Bb3 {[%clk 0:00:00]}  Bxc3 {[%clk 0:00:00]} 22. Rfd1 {[%clk 0:00:00]}  Rxd1+ {[%clk 0:00:00]} 23. Rxd1 {[%clk 0:00:00]}  Rc7 {[%clk 0:00:00]} 24. Bg3 {[%clk 0:00:00]}  Re7 {[%clk 0:00:00]} 25. Bh4 {[%clk 0:00:00]}  Rc7 {[%clk 0:00:00]} 26. Bg3 {[%clk 0:00:00]}  Re7 {[%clk 0:00:00]} 27. Kf2 {[%clk 0:00:00]}  Ba5 {[%clk 0:00:00]} 28. Bh4 {[%clk 0:00:00]}  Bb6+ {[%clk 0:00:00]} 29. Kg3 {[%clk 0:00:00]}  Rc7 {[%clk 0:00:00]} 30. Re1 {[%clk 0:00:00]}  Bc6 {[%clk 0:00:00]} 31. Rc1 {[%clk 0:00:00]}  Kg7 {[%clk 0:00:00]} 32. Kg2 {[%clk 0:00:00]}  Rd7 {[%clk 0:00:00]} 33. Bg3 {[%clk 0:00:00]}  Bd4 {[%clk 0:00:00]} 34. Rxc6 {[%clk 0:00:00]}  Bf6 {[%clk 0:00:00]} 35. Ba4 {[%clk 0:00:00]}  Rd2+ {[%clk 0:00:00]} 36. Kh3 {[%clk 0:00:00]}  Rxa2 {[%clk 0:00:00]} 37. Bb3 {[%clk 0:00:00]}  Ra3 {[%clk 0:00:00]} 38. Bd5 {[%clk 0:00:00]}  Rd3 {[%clk 0:00:00]} 39. Be4 {[%clk 0:00:00]}  Rd7 {[%clk 0:00:00]} 40. Ra6 {[%clk 0:00:00]}  Re7 {[%clk 0:00:00]} 41. Bf2 {[%clk 0:00:00]}  h5 {[%clk 0:00:00]} 42. Kg2 {[%clk 0:00:00]}  Rc7 {[%clk 0:00:00]} 43. h4 {[%clk 0:00:00]}  Rd7 {[%clk 0:00:00]} 44. Bxa7 {[%clk 0:00:00]}  Rd2+ {[%clk 0:00:00]} 45. Kg3 {[%clk 0:00:00]}  Rd1 {[%clk 0:00:00]} 46. Be3 {[%clk 0:00:00]}  Re1 {[%clk 0:00:00]} 47. Bf2 {[%clk 0:00:00]}  Rc1 {[%clk 0:00:00]} 48. Ra7 {[%clk 0:00:00]}  Rc8 {[%clk 0:00:00]} 49. Bd5 {[%clk 0:00:00]}  Rf8 {[%clk 0:00:00]} 50. Bc5 {[%clk 0:00:00]}  Rc8 {[%clk 0:00:00]} 51. Rxf7+ {[%clk 0:00:00]}  Kh8 {[%clk 0:00:00]} 52. Be3 {[%clk 0:00:00]}  Bg7 {[%clk 0:00:00]} 53. Bf4 {[%clk 0:00:00]}  Rd8 {[%clk 0:00:00]} 54. Be4 {[%clk 0:00:00]}  Re8 {[%clk 0:00:00]} 55. Rb7 {[%clk 0:00:00]}  Rf8 {[%clk 0:00:00]} 56. Bg5 {[%clk 0:00:00]}  Re8 {[%clk 0:00:00]} 57. Be3 {[%clk 0:00:00]}  Rf8 {[%clk 0:00:00]} 58. Rd7 {[%clk 0:00:00]}  Rf6 {[%clk 0:00:00]} 59. Bd4 {[%clk 0:00:00]}  Ra6 {[%clk 0:00:00]} 60. Bxg7+ {[%clk 0:00:00]}  Kg8 {[%clk 0:00:00]} 61. Bf6 {[%clk 0:00:00]}  Kf8 {[%clk 0:00:00]} 62. Bg5 {[%clk 0:00:00]}  Ke8 {[%clk 0:00:00]} 63. Re7+ {[%clk 0:00:00]}  Kf8 {[%clk 0:00:00]} 64. Rd7 {[%clk 0:00:00]}  Ke8 {[%clk 0:00:00]} 65. Rd8+ {[%clk 0:00:00]}  Kf7 {[%clk 0:00:00]} 66. Rd7+ {[%clk 0:00:00]}  Ke6 {[%clk 0:00:00]} 67. Re7+ {[%clk 0:00:00]}  Kd6 {[%clk 0:00:00]} 68. Bxg6 {[%clk 0:00:00]}  Ra3 {[%clk 0:00:00]} 69. Bxh5 {[%clk 0:00:00]}  Ra2 {[%clk 0:00:00]} 70. Bg4 {[%clk 0:00:00]}  Kd5 {[%clk 0:00:00]} 71. Rf7 {[%clk 0:00:00]}  Kd6 {[%clk 0:00:00]} 72. Rf6+ {[%clk 0:00:00]}  Kd5 {[%clk 0:00:00]} 73. Rf8 {[%clk 0:00:00]}  Ke5 {[%clk 0:00:00]} 74. Re8+ {[%clk 0:00:00]}  Kd6 {[%clk 0:00:00]} 75. Rd8+ {[%clk 0:00:00]}  Ke5 {[%clk 0:00:00]} 76. h5 {[%clk 0:00:00]}  Rg2+ {[%clk 0:00:00]} 77. Kxg2 {[%clk 0:00:00]} 1/2-1/2


[Site "https://www.chess.com"]

[Event "Titled Tuesday Blitz August 16 Late 2022"]
[White "Novikova, Galina"]
[Black "Sarkar, Justin"]
[WhiteFideId "4157095"]
[BlackFideId "2010011"]
[WhiteElo "1923"]
[BlackElo "2076"]
[Result "1-0"]
[Round "10"]
[TimeControl "180+1"]
[Date "2022.08.18"]
[WhiteClock "0:00:00"]
[BlackClock "0:00:00"]

1. e4 {[%clk 0:00:00]}  c5 {[%clk 0:00:00]} 2. Nf3 {[%clk 0:00:00]}  h6 {[%clk 0:00:00]} 3. d4 {[%clk 0:00:00]}  cxd4 {[%clk 0:00:00]} 4. Nxd4 {[%clk 0:00:00]}  Nf6 {[%clk 0:00:00]} 5. Nc3 {[%clk 0:00:00]}  e5 {[%clk 0:00:00]} 6. Ndb5 {[%clk 0:00:00]}  d6 {[%clk 0:00:00]} 7. a4 {[%clk 0:00:00]}  a6 {[%clk 0:00:00]} 8. Na3 {[%clk 0:00:00]}  Be6 {[%clk 0:00:00]} 9. Bc4 {[%clk 0:00:00]}  Nc6 {[%clk 0:00:00]} 10. O-O {[%clk 0:00:00]}  Be7 {[%clk 0:00:00]} 11. Re1 {[%clk 0:00:00]}  O-O {[%clk 0:00:00]} 12. Nd5 {[%clk 0:00:00]}  Rc8 {[%clk 0:00:00]} 13. Ba2 {[%clk 0:00:00]}  Bxd5 {[%clk 0:00:00]} 14. exd5 {[%clk 0:00:00]}  Nb8 {[%clk 0:00:00]} 15. c4 {[%clk 0:00:00]}  Nbd7 {[%clk 0:00:00]} 16. Bb1 {[%clk 0:00:00]}  Ne8 {[%clk 0:00:00]} 17. Bf5 {[%clk 0:00:00]}  Rc7 {[%clk 0:00:00]} 18. Re3 {[%clk 0:00:00]}  Bg5 {[%clk 0:00:00]} 19. Rg3 {[%clk 0:00:00]}  Bxc1 {[%clk 0:00:00]} 20. Rxc1 {[%clk 0:00:00]}  Qf6 {[%clk 0:00:00]} 21. Rf3 {[%clk 0:00:00]}  Qe7 {[%clk 0:00:00]} 22. Qd2 {[%clk 0:00:00]}  Nc5 {[%clk 0:00:00]} 23. Bc2 {[%clk 0:00:00]}  Qg5 {[%clk 0:00:00]} 24. Qe1 {[%clk 0:00:00]}  g6 {[%clk 0:00:00]} 25. Rg3 {[%clk 0:00:00]}  Qf6 {[%clk 0:00:00]} 26. b4 {[%clk 0:00:00]}  Nd7 {[%clk 0:00:00]} 27. Qe4 {[%clk 0:00:00]}  Ng7 {[%clk 0:00:00]} 28. h4 {[%clk 0:00:00]}  Nf5 {[%clk 0:00:00]} 29. Rh3 {[%clk 0:00:00]}  h5 {[%clk 0:00:00]} 30. g4 {[%clk 0:00:00]}  hxg4 {[%clk 0:00:00]} 31. Qxg4 {[%clk 0:00:00]}  Nd4 {[%clk 0:00:00]} 32. Bd3 {[%clk 0:00:00]}  Qf4 {[%clk 0:00:00]} 33. Qxf4 {[%clk 0:00:00]}  exf4 {[%clk 0:00:00]} 34. h5 {[%clk 0:00:00]}  Ne5 {[%clk 0:00:00]} 35. Bf1 {[%clk 0:00:00]}  f3 {[%clk 0:00:00]} 36. hxg6 {[%clk 0:00:00]}  fxg6 {[%clk 0:00:00]} 37. c5 {[%clk 0:00:00]}  g5 {[%clk 0:00:00]} 38. Rh6 {[%clk 0:00:00]}  g4 {[%clk 0:00:00]} 39. Rxd6 {[%clk 0:00:00]}  Ne2+ {[%clk 0:00:00]} 40. Bxe2 {[%clk 0:00:00]}  fxe2 {[%clk 0:00:00]} 41. Kg2 {[%clk 0:00:00]}  Nd3 {[%clk 0:00:00]} 42. Rh1 {[%clk 0:00:00]}  e1=Q {[%clk 0:00:00]} 43. Rxe1 {[%clk 0:00:00]}  Nxe1+ {[%clk 0:00:00]} 44. Kf1 {[%clk 0:00:00]}  Nd3 {[%clk 0:00:00]} 45. Rg6+ {[%clk 0:00:00]}  Kf7 {[%clk 0:00:00]} 46. Rxg4 {[%clk 0:00:00]}  Ne5 {[%clk 0:00:00]} 47. Re4 {[%clk 0:00:00]}  Ng6 {[%clk 0:00:00]} 48. d6 {[%clk 0:00:00]}  Rd7 {[%clk 0:00:00]} 49. Nc4 {[%clk 0:00:00]}  Re8 {[%clk 0:00:00]} 50. Rd4 {[%clk 0:00:00]}  Ne5 {[%clk 0:00:00]} 51. Nb6 {[%clk 0:00:00]}  Rdd8 {[%clk 0:00:00]} 52. Rh4 {[%clk 0:00:00]}  Nd7 {[%clk 0:00:00]} 53. Rh7+ {[%clk 0:00:00]}  Ke6 {[%clk 0:00:00]} 54. Rh6+ {[%clk 0:00:00]}  Ke5 {[%clk 0:00:00]} 55. Nc4+ {[%clk 0:00:00]}  Kd4 {[%clk 0:00:00]} 56. Rh4+ {[%clk 0:00:00]}  Kd5 {[%clk 0:00:00]} 57. Ne3+ {[%clk 0:00:00]}  Ke5 {[%clk 0:00:00]} 58. Rh7 {[%clk 0:00:00]}  Nxc5 {[%clk 0:00:00]} 59. bxc5 {[%clk 0:00:00]}  Kd4 {[%clk 0:00:00]} 60. Rh5 {[%clk 0:00:00]} 1-0


[Site "https://www.chess.com"]

[Event "Titled Tuesday Blitz August 16 Late 2022"]
[White "Oparin, Grigoriy"]
[Black "Riehle, Marco"]
[WhiteFideId "24125890"]
[BlackFideId "12904392"]
[WhiteElo "2639"]
[BlackElo "2462"]
[Result "1-0"]
[Round "10"]
[TimeControl "180+1"]
[Date "2022.08.16"]
[WhiteClock "0:01:40"]
[BlackClock "0:01:47"]

1. c4 {[%clk 0:03:00]}  c5 {[%clk 0:02:58]} 2. Nc3 {[%clk 0:03:01]}  Nf6 {[%clk 0:02:58]} 3. Nf3 {[%clk 0:03:01]}  d5 {[%clk 0:02:59]} 4. cxd5 {[%clk 0:03:01]}  Nxd5 {[%clk 0:03:00]} 5. e3 {[%clk 0:03:02]}  Nc6 {[%clk 0:03:00]} 6. Bb5 {[%clk 0:03:01]}  e6 {[%clk 0:03:00]} 7. O-O {[%clk 0:03:00]}  Bd6 {[%clk 0:03:00]} 8. d4 {[%clk 0:02:56]}  cxd4 {[%clk 0:02:54]} 9. Nxd5 {[%clk 0:02:55]}  exd5 {[%clk 0:02:53]} 10. Qxd4 {[%clk 0:02:51]}  O-O {[%clk 0:02:53]} 11. Bxc6 {[%clk 0:02:50]}  bxc6 {[%clk 0:02:54]} 12. b3 {[%clk 0:02:50]}  c5 {[%clk 0:02:49]} 13. Qh4 {[%clk 0:02:50]}  Qxh4 {[%clk 0:02:45]} 14. Nxh4 {[%clk 0:02:51]}  d4 {[%clk 0:02:44]} 15. Nf3 {[%clk 0:02:48]}  Bg4 {[%clk 0:02:43]} 16. exd4 {[%clk 0:02:45]}  Bxf3 {[%clk 0:02:44]} 17. gxf3 {[%clk 0:02:46]}  cxd4 {[%clk 0:02:44]} 18. Bd2 {[%clk 0:02:47]}  Rac8 {[%clk 0:02:41]} 19. Rac1 {[%clk 0:02:47]}  Rfe8 {[%clk 0:02:40]} 20. Rfd1 {[%clk 0:02:45]}  Ba3 {[%clk 0:02:36]} 21. Rxc8 {[%clk 0:02:45]}  Rxc8 {[%clk 0:02:37]} 22. Bf4 {[%clk 0:02:35]}  Bb2 {[%clk 0:02:35]} 23. Kf1 {[%clk 0:02:32]}  f6 {[%clk 0:02:31]} 24. Ke2 {[%clk 0:02:28]}  Kf7 {[%clk 0:02:30]} 25. Bd2 {[%clk 0:02:27]}  Ke6 {[%clk 0:02:27]} 26. Kd3 {[%clk 0:02:25]}  Kd5 {[%clk 0:02:27]} 27. Re1 {[%clk 0:02:22]}  Ba3 {[%clk 0:02:26]} 28. b4 {[%clk 0:02:09]}  Rb8 {[%clk 0:02:25]} 29. Re4 {[%clk 0:02:09]}  Bb2 {[%clk 0:02:16]} 30. Re7 {[%clk 0:02:09]}  g5 {[%clk 0:02:11]} 31. Rxa7 {[%clk 0:02:06]}  h5 {[%clk 0:02:11]} 32. a4 {[%clk 0:02:04]}  Rc8 {[%clk 0:02:07]} 33. Ra5+ {[%clk 0:01:51]}  Ke6 {[%clk 0:02:07]} 34. Ra6+ {[%clk 0:01:49]}  Ke5 {[%clk 0:02:04]} 35. b5 {[%clk 0:01:43]}  Bc3 {[%clk 0:01:59]} 36. Rc6 {[%clk 0:01:42]}  Ra8 {[%clk 0:01:56]} 37. Bxc3 {[%clk 0:01:42]}  dxc3 {[%clk 0:01:57]} 38. Rc4 {[%clk 0:01:42]}  f5 {[%clk 0:01:47]} 39. Kxc3 {[%clk 0:01:41]}  g4 {[%clk 0:01:47]} 40. fxg4 {[%clk 0:01:39]}  hxg4 {[%clk 0:01:48]} 41. b6 {[%clk 0:01:40]}  f4 {[%clk 0:01:45]} 42. b7 {[%clk 0:01:39]}  Rb8 {[%clk 0:01:46]} 43. Rb4 {[%clk 0:01:39]}  g3 {[%clk 0:01:46]} 44. hxg3 {[%clk 0:01:39]}  fxg3 {[%clk 0:01:47]} 45. fxg3 {[%clk 0:01:40]}  Kd6 {[%clk 0:01:47]} 46. a5 {[%clk 0:01:40]} 1-0


[Site "https://www.chess.com"]

[Event "Titled Tuesday Blitz August 16 Late 2022"]
[White "Oro, Luis"]
[Black "Romero Ruscalleda, Josep"]
[WhiteFideId "104094"]
[BlackFideId "2231859"]
[WhiteElo "2255"]
[BlackElo "2193"]
[Result "0-1"]
[Round "10"]
[TimeControl "180+1"]
[Date "2022.08.18"]
[WhiteClock "0:00:00"]
[BlackClock "0:00:00"]

1. e4 {[%clk 0:00:00]}  g6 {[%clk 0:00:00]} 2. d4 {[%clk 0:00:00]}  Bg7 {[%clk 0:00:00]} 3. Nc3 {[%clk 0:00:00]}  d6 {[%clk 0:00:00]} 4. f4 {[%clk 0:00:00]}  a6 {[%clk 0:00:00]} 5. Nf3 {[%clk 0:00:00]}  b5 {[%clk 0:00:00]} 6. Bd3 {[%clk 0:00:00]}  Nd7 {[%clk 0:00:00]} 7. Be3 {[%clk 0:00:00]}  Bb7 {[%clk 0:00:00]} 8. O-O {[%clk 0:00:00]}  Ngf6 {[%clk 0:00:00]} 9. e5 {[%clk 0:00:00]}  Nd5 {[%clk 0:00:00]} 10. Nxd5 {[%clk 0:00:00]}  Bxd5 {[%clk 0:00:00]} 11. Qe2 {[%clk 0:00:00]}  O-O {[%clk 0:00:00]} 12. c4 {[%clk 0:00:00]}  bxc4 {[%clk 0:00:00]} 13. Bxc4 {[%clk 0:00:00]}  Bxc4 {[%clk 0:00:00]} 14. Qxc4 {[%clk 0:00:00]}  Nb6 {[%clk 0:00:00]} 15. Qb3 {[%clk 0:00:00]}  Rb8 {[%clk 0:00:00]} 16. Rac1 {[%clk 0:00:00]}  Qd7 {[%clk 0:00:00]} 17. Qc2 {[%clk 0:00:00]}  Rfc8 {[%clk 0:00:00]} 18. Rfd1 {[%clk 0:00:00]}  Nd5 {[%clk 0:00:00]} 19. Bd2 {[%clk 0:00:00]}  Qb5 {[%clk 0:00:00]} 20. b3 {[%clk 0:00:00]}  Nb4 {[%clk 0:00:00]} 21. Qb1 {[%clk 0:00:00]}  c5 {[%clk 0:00:00]} 22. dxc5 {[%clk 0:00:00]}  dxe5 {[%clk 0:00:00]} 23. Nxe5 {[%clk 0:00:00]}  Rxc5 {[%clk 0:00:00]} 24. Be3 {[%clk 0:00:00]}  Rxc1 {[%clk 0:00:00]} 25. Rxc1 {[%clk 0:00:00]}  Qe2 {[%clk 0:00:00]} 26. Bf2 {[%clk 0:00:00]}  Qxa2 {[%clk 0:00:00]} 27. Qe4 {[%clk 0:00:00]}  Qxb3 {[%clk 0:00:00]} 28. Rb1 {[%clk 0:00:00]}  Qc3 {[%clk 0:00:00]} 29. Be1 {[%clk 0:00:00]}  Qc5+ {[%clk 0:00:00]} 30. Kh1 {[%clk 0:00:00]}  a5 {[%clk 0:00:00]} 31. Nd7 {[%clk 0:00:00]}  Qb5 {[%clk 0:00:00]} 32. Nxb8 {[%clk 0:00:00]}  Qf1# {[%clk 0:00:00]} 0-1


[Site "https://www.chess.com"]

[Event "Titled Tuesday Blitz August 16 Late 2022"]
[White "Paravyan, David"]
[Black "Zou, Chen"]
[WhiteFideId "4194985"]
[BlackFideId "8610959"]
[WhiteElo "2569"]
[BlackElo "2276"]
[Result "1-0"]
[Round "10"]
[TimeControl "180+1"]
[Date "2022.08.16"]
[WhiteClock "0:01:29"]
[BlackClock "0:00:01"]

1. e4 {[%clk 0:03:00]}  e5 {[%clk 0:02:59]} 2. Nf3 {[%clk 0:03:01]}  Nc6 {[%clk 0:03:00]} 3. Nc3 {[%clk 0:03:01]}  Nf6 {[%clk 0:02:59]} 4. d4 {[%clk 0:03:01]}  exd4 {[%clk 0:03:00]} 5. Nxd4 {[%clk 0:03:01]}  Bb4 {[%clk 0:03:00]} 6. Nxc6 {[%clk 0:03:02]}  bxc6 {[%clk 0:03:01]} 7. Bd3 {[%clk 0:03:02]}  d5 {[%clk 0:03:01]} 8. exd5 {[%clk 0:03:03]}  O-O {[%clk 0:03:02]} 9. O-O {[%clk 0:03:04]}  cxd5 {[%clk 0:03:02]} 10. Bg5 {[%clk 0:03:04]}  c6 {[%clk 0:03:03]} 11. Qf3 {[%clk 0:03:05]}  Bd6 {[%clk 0:03:03]} 12. Rae1 {[%clk 0:03:05]}  Rb8 {[%clk 0:03:03]} 13. Nd1 {[%clk 0:03:05]}  h6 {[%clk 0:03:01]} 14. Bxf6 {[%clk 0:03:05]}  Qxf6 {[%clk 0:03:02]} 15. Qxf6 {[%clk 0:03:06]}  gxf6 {[%clk 0:03:03]} 16. b3 {[%clk 0:03:06]}  f5 {[%clk 0:02:58]} 17. Ne3 {[%clk 0:03:06]}  f4 {[%clk 0:02:59]} 18. Nf5 {[%clk 0:03:07]}  Bxf5 {[%clk 0:03:00]} 19. Bxf5 {[%clk 0:03:08]}  Kg7 {[%clk 0:03:00]} 20. Rd1 {[%clk 0:03:07]}  Kf6 {[%clk 0:02:57]} 21. Bd7 {[%clk 0:03:07]}  Rb6 {[%clk 0:02:55]} 22. Rd3 {[%clk 0:03:04]}  Rd8 {[%clk 0:02:46]} 23. Bg4 {[%clk 0:03:04]}  Re8 {[%clk 0:01:27]} 24. Rfd1 {[%clk 0:03:03]}  Bb4 {[%clk 0:01:21]} 25. g3 {[%clk 0:02:52]}  fxg3 {[%clk 0:01:21]} 26. hxg3 {[%clk 0:02:53]}  Ra6 {[%clk 0:01:11]} 27. a4 {[%clk 0:02:52]}  Rb6 {[%clk 0:01:11]} 28. Kg2 {[%clk 0:02:52]}  Re1 {[%clk 0:01:06]} 29. Rxe1 {[%clk 0:02:50]}  Bxe1 {[%clk 0:01:07]} 30. Rf3+ {[%clk 0:02:47]}  Kg7 {[%clk 0:01:05]} 31. Re3 {[%clk 0:02:44]}  Bb4 {[%clk 0:01:03]} 32. Re8 {[%clk 0:02:44]}  c5 {[%clk 0:00:50]} 33. Rd8 {[%clk 0:02:43]}  d4 {[%clk 0:00:49]} 34. Rd7 {[%clk 0:02:41]}  a5 {[%clk 0:00:48]} 35. Bh5 {[%clk 0:02:37]}  Rf6 {[%clk 0:00:48]} 36. f4 {[%clk 0:02:37]}  Kf8 {[%clk 0:00:46]} 37. Kf3 {[%clk 0:02:36]}  Ke8 {[%clk 0:00:45]} 38. Ra7 {[%clk 0:02:34]}  Kf8 {[%clk 0:00:45]} 39. Ke4 {[%clk 0:02:32]}  Re6+ {[%clk 0:00:45]} 40. Kd5 {[%clk 0:02:27]}  Re7 {[%clk 0:00:45]} 41. Ra6 {[%clk 0:02:27]}  Kg7 {[%clk 0:00:46]} 42. f5 {[%clk 0:02:27]}  f6 {[%clk 0:00:41]} 43. g4 {[%clk 0:01:47]}  Re5+ {[%clk 0:00:33]} 44. Kc4 {[%clk 0:01:47]}  Re7 {[%clk 0:00:33]} 45. Kb5 {[%clk 0:01:47]}  Rb7+ {[%clk 0:00:32]} 46. Kc4 {[%clk 0:01:45]}  Re7 {[%clk 0:00:33]} 47. Rd6 {[%clk 0:01:42]}  Rb7 {[%clk 0:00:30]} 48. Re6 {[%clk 0:01:42]}  Rd7 {[%clk 0:00:29]} 49. Be8 {[%clk 0:01:42]}  Rc7 {[%clk 0:00:28]} 50. Bc6 {[%clk 0:01:41]}  Kf7 {[%clk 0:00:24]} 51. Bd5 {[%clk 0:01:41]}  Re7 {[%clk 0:00:22]} 52. Rc6+ {[%clk 0:01:38]}  Kg7 {[%clk 0:00:22]} 53. Be6 {[%clk 0:01:39]}  Ra7 {[%clk 0:00:15]} 54. Rb6 {[%clk 0:01:38]}  Rc7 {[%clk 0:00:14]} 55. Ra6 {[%clk 0:01:39]}  Rb7 {[%clk 0:00:09]} 56. Ra8 {[%clk 0:01:35]}  Re7 {[%clk 0:00:06]} 57. Kb5 {[%clk 0:01:34]}  Rb7+ {[%clk 0:00:03]} 58. Kc6 {[%clk 0:01:34]}  Re7 {[%clk 0:00:03]} 59. Rg8+ {[%clk 0:01:27]}  Kh7 {[%clk 0:00:04]} 60. Rg6 {[%clk 0:01:27]}  Rxe6+ {[%clk 0:00:03]} 61. fxe6 {[%clk 0:01:28]}  Kxg6 {[%clk 0:00:01]} 62. e7 {[%clk 0:01:29]} 1-0


[Site "https://www.chess.com"]